Cogmind - Beta 16 @@@ ROGUE MODE // 2025.11.21 @ 15:23:02 Player: Sharkenning Result: Destroyed by A-27 Freighter with PD Laser Performance ------------- Evolutions (4) 2000 Regions Visited (10) 2000 Robots Destroyed (165) 825 Value Destroyed (4544) 4544 Prototype IDs (12) 240 Alien Tech Used (0) 0 Bonus (268) 268 TOTAL SCORE: 9877 Bonus ------- High Alert Combat Kills 64 Follower Combat Kills 233 Friendly Fire -29 Cogmind --------- Core Integrity 0/850 Matter 206/300 Energy 39/100 System Corruption 5% Temperature Cool (6) Movement Core (750) Ox14 Location -6/Factory Parts ------- > --- POWER (2) -------- (None) > --- PROPULSION (4) --- (None) > --- UTILITY (6) ------ Advanced Heat Sink High-capacity Storage Unit Enhanced Optical Array Advanced Signal Interpreter Advanced Targeting Computer > --- WEAPON (3) ------- Heavy Flail > --- INVENTORY (20) --- Large Storage Unit High-capacity Matter Pod (200) Compact Matter Pod (103) Improved Trap Scanner Transmission Jammer Hacking Suite System Shield Improved Trap Extractor (0/6) CPS Tube (2) Peak State ------------ > --- POWER ------------ Improved Deuterium Engine Light Angular Momentum Engine > --- PROPULSION ------- Advanced Treads Advanced Treads Advanced Medium Treads Advanced Medium Treads > --- UTILITY ---------- Advanced Heat Sink High-capacity Storage Unit Enhanced Optical Array Advanced Signal Interpreter Advanced Targeting Computer Hardened Medium Armor Plating > --- WEAPON ----------- Phase Cannon High-powered Shotgun Assault Cannon > --- INVENTORY -------- Light Angular Momentum Engine Advanced Treads Large Storage Unit High-capacity Matter Pod Compact Matter Pod Improved Trap Scanner Improved Sensor Array Core Analyzer Transmission Jammer Hacking Suite System Shield Improved Trap Extractor Drone Bay Gauss Rifle Assault Cannon Advanced EMP Blaster CPS Tube Heavy Flail [Rating: 68] Favorites ----------- Power Deuterium Engine Engine Deuterium Engine Power Core Micro Nuclear Core Propulsion Advanced Treads Treads Advanced Treads Leg Carbon-fiber Leg Wheel Armored Wheel Utility Large Storage Unit Device Improved Sensor Array Storage Large Storage Unit Processor Improved Signal Interpreter Protection Medium Armor Plating Weapon Assault Cannon Energy Gun Field Laser Energy Cannon Phase Cannon Ballistic Gun High-powered Shotgun Ballistic Cannon Assault Cannon Launcher Advanced EMP Blaster Special Weapon CPS Tube Impact Weapon Heavy Flail Build | -11 -10 -9 -9 -9 -8 -8 -8 -8 -8 -6 ------- Run | Yrd Mat Mat Min Exi Min Mat Sto Rec Scr Fac Slots Evolved 8 | . . 2 . . . 2 . . . 4 Power 1 | . . . . . . . . . . 1 Propulsion 2 | . . . . . . 1 . . . 1 Utility 4 | . . 2 . . . . . . . 2 Weapon 1 | . . . . . . 1 . . . . Parts Attached 101 | 7 14 13 2 1 2 33 7 . 6 16 Power 10 | 1 1 1 . . 1 2 . . . 4 Engine 8 | 1 1 1 . . . 2 . . . 3 Core 2 | . . . . . 1 . . . . 1 Reactor . | . . . . . . . . . . . Propulsion 24 | 2 3 3 . . . 12 . . 1 3 Treads 8 | . . . . . . 5 . . . 3 Leg 4 | . . . . . . 4 . . . . Wheel 12 | 2 3 3 . . . 3 . . 1 . Hover . | . . . . . . . . . . . Flight . | . . . . . . . . . . . Utility 37 | 2 4 5 2 . 1 11 2 . 2 8 Device 13 | 1 1 1 2 . . 4 1 . . 3 Storage 4 | 1 1 . . . . 1 . . . 1 Processor 11 | . 2 2 . . . 3 . . 1 3 Hackware . | . . . . . . . . . . . Protection 9 | . . 2 . . 1 3 1 . 1 1 Artifact . | . . . . . . . . . . . Weapon 30 | 2 6 4 . 1 . 8 5 . 3 1 Energy Gun 9 | . 4 1 . . . 1 2 . . 1 Energy Cannon 2 | . . . . . . 1 . . 1 . Ballistic Gun 9 | 2 1 1 . . . 3 1 . 1 . Ballistic Cannon 4 | . . 2 . . . 2 . . . . Launcher 2 | . . . . . . . 2 . . . Special Weapon 3 | . 1 . . 1 . . . . 1 . Impact Weapon 1 | . . . . . . 1 . . . . Slashing Weapon . | . . . . . . . . . . . Piercing Weapon . | . . . . . . . . . . . Special Melee Weapon . | . . . . . . . . . . . Unidentified Prototypes 5 | . . . 1 . . . 4 . . . Parts Lost 42 | . 5 3 . . 2 9 . . . 23 Power 6 | . 1 . . . . 1 . . . 4 Propulsion 11 | . 3 . . . . 2 . . . 6 Utility 14 | . 1 2 . . 2 4 . . . 5 Weapon 11 | . . 1 . . . 2 . . . 8 Highest Loss Streak 15 | . 2 1 . . 2 5 . . . 15 To Critical Strikes 1 | . . 1 . . . . . . . . Average Backups 13 | 3 7 10 14 14 13 14 14 15 14 15 Power . | . . . . . 1 1 . . . . Propulsion . | 1 . . . . . 1 . . . . Utility 7 | . 2 4 7 7 5 6 8 9 9 9 Weapon 4 | 1 3 5 5 5 5 3 4 5 4 4 Tool/Special . | . . . . . . . . . . . Unused Backups 16 | 2 . 1 2 . 1 1 2 . 2 5 Power 1 | . . . . . . . 1 . . . Propulsion 2 | 2 . . . . . . . . . . Utility 10 | . . 1 2 . . . . . 2 5 Weapon 2 | . . . . . 1 1 . . . . Tool/Special 1 | . . . . . . . 1 . . . Average Slot Usage (%) 97 | . 95 96 100 100 99 96 99 100 99 95 Engine 8 | . 13 11 11 11 1 7 9 9 9 7 Core 1 | . . . . . 9 . . . . 3 Treads 16 | . . . . . . 19 26 27 25 23 Wheel 8 | . 25 22 22 22 22 5 . . 1 . Device 8 | . 7 12 11 11 1 6 7 9 8 6 Storage 9 | . 14 11 11 11 11 9 9 9 9 6 Processor 16 | . 4 10 22 22 22 14 18 18 18 19 Protection 2 | . . 6 . . 9 3 1 . . 5 Energy Gun 2 | . 10 3 . . . 4 . . . 2 Energy Cannon 3 | . . . . . . 1 9 9 6 5 Ballistic Gun 7 | . 16 11 11 11 11 8 9 9 . 3 Ballistic Cannon 8 | . . 5 11 10 11 9 4 7 17 3 Impact Weapon 1 | . . . . . . 3 3 1 . 2 Peak Build Rating 68 | 7 9 19 26 20 23 34 35 34 38 68 Average Rating 30 | 5 6 13 18 19 22 28 33 33 36 58 On Entrance 21 | . 7 7 17 20 20 23 34 33 34 38 Avg Prop Armor Cover (%) 7 | . . . . . . 10 . . 5 . Naked Turns . | . . . . . . . . . . . Heaviest Build 86 | 13 30 43 37 37 37 46 48 44 48 86 Greatest Support 104 | 20 26 28 24 24 24 66 66 66 66 104 Greatest Overweight (x) 5 | . 2 1 1 1 1 2 . . 5 1 Average Overweight (x) . | . . 1 1 1 1 . . . . . Largest Inventory Capacity 20 | 8 15 15 15 15 15 15 15 15 15 20 Average Capacity 15 | 5 9 15 15 15 15 15 15 15 15 18 Most Carried 20 | 5 9 15 15 15 15 15 15 15 15 20 Average Carried 13 | 3 7 10 14 14 13 14 14 14 14 15 Final Capacity 20 | 8 15 15 15 15 15 15 15 15 15 20 Final Carried 15 | 4 8 15 14 15 15 15 15 15 15 9 Class Distribution -------------------- 42% | Skirmisher 41% | Mutant 5% | Assassin 4% | Gunner 3% | Scavenger-Mutant Dominant Class ---------------- Mutant | -10/Materials Mutant | -9/Materials Mutant | -9/Mines Mutant | -9/Exiles Mutant | -8/Mines Skirmisher | -8/Materials Mutant | -8/Storage Skirmisher | -8/Recycling Skirmisher | -8/Scraptown Skirmisher | -6/Factory Resources | -11 -10 -9 -9 -9 -8 -8 -8 -8 -8 -6 ----------- Run | Yrd Mat Mat Min Exi Min Mat Sto Rec Scr Fac Matter Collected 4280 | 288 398 531 160 . 213 1200 566 81 60 783 Remotely . | . . . . . . . . . . . Salvage Created 5278 | 125 755 791 . . 195 1299 814 106 . 1193 Parts 332 | 9 43 69 . . 14 70 49 9 . 69 Haulers Intercepted 6 | . 2 . . . . 2 1 . . 1 Recyclers Shooed 6 | 1 . . 1 . . 4 . . . . Parts Field Recycled . | . . . . . . . . . . . Retrieved Matter . | . . . . . . . . . . . Parts Self-Destructed . | . . . . . . . . . . . Prevented . | . . . . . . . . . . . Parts Restored . | . . . . . . . . . . . Kills | -11 -10 -9 -9 -9 -8 -8 -8 -8 -8 -6 ------- Run | Yrd Mat Mat Min Exi Min Mat Sto Rec Scr Fac Combat Hostiles Destroyed 114 | . 15 27 . . 10 21 15 2 . 24 Melee 2 | . . . . . . 1 . . . 1 Guns 53 | . 15 19 . . 3 10 . 1 . 5 Cannons 37 | . . 7 . . 6 8 6 1 . 9 AOE 18 | . . . . . 1 . 9 . . 8 Classes Destroyed 15 | 2 4 3 . . . 2 2 . . 2 Worker 9 | . . . . . . 3 1 . . 5 Builder 7 | . . 1 . . . 4 1 . . 1 Tunneler 6 | 3 . . . . 2 1 . . . . Hauler 6 | . 2 . . . . 2 1 . . 1 Recycler 8 | 1 . . . . . 5 1 . . 1 Mechanic 1 | . . . . . . . 1 . . . Operator 3 | . . 3 . . . . . . . . Watcher 11 | . 3 3 . . . 3 2 . . . Swarmer 43 | . 3 13 . . 7 8 3 . . 9 Saboteur 1 | . . . . . . . . . . 1 Grunt 44 | . 12 8 . . 3 7 9 . . 5 Duelist 1 | . . . . . . . 1 . . . Sentry 17 | . . 6 . . . 4 2 2 . 3 Hunter 3 | . . . . . . 2 . . . 1 Programmer 5 | . . . . . . . . . . 5 Best Kill Streak 8 | 4 8 6 . . 4 8 8 1 . 5 Combat Bots Only 8 | . 8 5 . . 4 4 6 1 . 4 Max Kills in Single Turn 4 | 1 1 2 . . 2 3 3 1 . 4 Gunslinging 1 | . . 1 . . . . . . . . Exploded 3 | . . . . . 1 . 3 . . 3 Melee 1 | . . . . . . 1 . . . 1 Uniques/NPCs Destroyed . | . . . . . . . . . . . Combat | -11 -10 -9 -9 -9 -8 -8 -8 -8 -8 -6 -------- Run | Yrd Mat Mat Min Exi Min Mat Sto Rec Scr Fac Hostile Shots Fired 650 | . 63 101 1 . 41 113 35 6 . 290 Missed 148 | . 10 29 . . 14 20 8 1 . 66 Hits 502 | . 53 72 1 . 27 93 27 5 . 224 Projectile 502 | . 53 72 1 . 27 93 27 5 . 224 Critical Strikes 18 | . . 4 . . 1 4 1 . . 8 Part Disruptions 2 | . . . . . . . . . . 2 Damage Taken 7366 | . 609 731 9 . 311 1255 448 66 . 3937 Core 1426 | . 104 152 . . 48 214 37 . . 871 Absorbed by Shields 26 | . . . 4 . 22 . . . . . Redirected to Shielding 109 | . . . . . 37 72 . . . . Regen/Repaired (Parts) 927 | . . . . . . 8 358 . 372 189 Core Remaining (%) 65 | 100 58 . . . 50 . . . 54 . Volleys Fired 363 | 14 74 76 2 3 20 80 30 2 . 62 Largest 3 | 2 2 2 1 1 2 3 3 3 . 3 Hottest 160 | 40 120 100 23 20 60 137 137 137 . 160 Shots Fired 757 | 28 142 146 2 3 36 206 65 5 . 124 Gun 486 | 28 137 98 2 . 19 131 20 1 . 50 Cannon 246 | . . 46 . . 17 75 38 4 . 66 Launcher 15 | . . . . . . . 7 . . 8 Special 10 | . 5 2 . 3 . . . . . . Kinetic 529 | 28 77 125 2 . 36 150 38 3 . 70 Thermal 153 | . 15 21 . 3 . 56 20 2 . 36 Explosive 2 | . . . . . . . 2 . . . Electromagnetic 73 | . 50 . . . . . 5 . . 18 Robot Hit Streak 30 | 14 14 30 3 . 8 10 14 3 . 17 Robot Miss Streak 8 | 3 4 8 1 . 3 5 6 1 . 2 Penetration Max 1 | . . . . . . . . . . 1 Secondary Targets 4 | . 2 2 . . . . . . . . Max Gunslinging Chain 1 | . 1 1 . . . . . . . . Shots Hit Robots 477 | 18 89 88 2 . 23 114 41 2 . 100 Core Hits 263 | 6 36 47 1 . 17 45 43 3 . 65 Critical Kills 2 | . . . . . . . . . . 2 Critical Parts Destroyed 9 | . . . . . 1 5 1 . . 2 Critical Strikes 24 | . 2 5 . . 1 9 1 . . 6 Burn 2 | . 1 1 . . . . . . . . Destroy 7 | . . . . . 1 3 1 . . 2 Blast 10 | . . 4 . . . 4 . . . 2 Corrupt 1 | . 1 . . . . . . . . . Smash 4 | . . . . . . 2 . . . 2 Melee Attacks 59 | . . . . . . 22 10 1 . 26 Impact 59 | . . . . . . 22 10 1 . 26 Slashing . | . . . . . . . . . . . Piercing . | . . . . . . . . . . . Sneak Attacks 8 | . . . . . . 6 . . . 2 Combat Hostiles . | . . . . . . . . . . . Follow-up Attacks . | . . . . . . . . . . . Damage Inflicted 12490 | 144 1158 1425 35 . 559 3167 2143 60 . 3799 Guns 4822 | 144 980 904 35 . 251 1309 314 21 . 864 Cannons 3579 | . . 521 . . 261 814 594 25 . 1364 Explosions 2746 | . 178 . . . 47 289 1198 . . 1034 Melee 1297 | . . . . . . 734 37 . . 526 Ramming 46 | . . . . . . 21 . 14 . 11 Kinetic 5663 | 144 396 1189 35 . 512 1565 583 21 . 1218 Thermal 3497 | . 304 236 . . 47 847 649 25 . 1389 Explosive 295 | . . . . . . . 295 . . . Electromagnetic 1692 | . 458 . . . . . 579 . . 655 Impact 1297 | . . . . . . 734 37 . . 526 Slashing . | . . . . . . . . . . . Piercing . | . . . . . . . . . . . Highest Corruption 5 | . . 1 1 1 1 . . . . 5 Average Corruption 1 | . . 1 1 1 1 . . . . 3 Corruption Purged . | . . . . . . . . . . . Corruption Blocked . | . . . . . . . . . . . Effects 20 | . . 1 5 2 5 . . . . 7 Message Errors 7 | . . . 2 1 1 . . . . 3 Matter Fused 2 | . . . . . 1 . . . . 1 Heat Flow Errors 5 | . . . 2 . 1 . . . . 2 Energy Discharges 1 | . . . . . . . . . . 1 Parts Fused 1 | . . . . 1 . . . . . . Data Loss (minor) 1 | . . . . . 1 . . . . . Data Loss (major) 1 | . . . 1 . . . . . . . Misfires 1 | . . . . . 1 . . . . . Weapon Failures 1 | . . 1 . . . . . . . . Overload Shots . | . . . . . . . . . . . Overflow Damage 792 | . 18 15 . . 5 422 41 . . 291 Projectiles 43 | . . 15 . . 5 . . . . 23 Explosions 204 | . 18 . . . . 57 41 . . 88 Melee 545 | . . . . . . 365 . . . 180 Knockbacks 22 | . . 6 . . 3 10 1 . . 2 Impact 3 | . . . . . . 3 . . . . Kinetic 17 | . . 5 . . 2 7 1 . . 2 Secondary 2 | . . 1 . . 1 . . . . . Self-Inflicted Damage 318 | . . . . . . . 22 . . 296 Shots 7 | . . . . . . . 1 . . 6 Rammed 6 | . . . . . . 1 . 1 . 4 Targets Rammed 7 | . . . . . . 2 . 1 . 4 Kicked . | . . . . . . . . . . . Crushed 1 | . . . . . . 1 . . . . Highest Temperature 514 | . 457 102 277 . 258 419 407 60 . 514 Average Temperature 90 | . 92 23 128 . 77 89 106 30 . 140 Received Heat Transfer 1765 | . 288 156 6 . 129 396 216 18 . 556 Effects 19 | . 3 . . . . 4 2 . . 10 Shutdowns 6 | . 1 . . . . 2 1 . . 2 Energy Bleed 1 | . . . . . . . . . . 1 Interference 6 | . . . . . . . . . . 6 Short Circuit 2 | . 2 . . . . . . . . . Damage (minor) 3 | . . . . . . 2 1 . . . Damage (core) 1 | . . . . . . . . . . 1 Siege Activations . | . . . . . . . . . . . Martial Activations . | . . . . . . . . . . . Shielding Activations . | . . . . . . . . . . . Robots Disrupted . | . . . . . . . . . . . Combat Hostiles . | . . . . . . . . . . . Robots Corrupted 6 | . . 1 . . . 4 . . . 1 Combat Hostiles 4 | . . 1 . . . 2 . . . 1 Parts Fried 14 | . 5 2 . . . 5 . . . 2 Impact Corruptions 16 | . . 1 . . . 11 . . . 4 Robots Melted . | . . . . . . . . . . . Combat Hostiles . | . . . . . . . . . . . Parts Melted 3 | . 1 . . . . 1 . . . 1 Heat Transferred 4826 | . 620 629 . . 100 1347 781 37 . 1312 Parts Sabotaged . | . . . . . . . . . . . Parts Stolen . | . . . . . . . . . . . Parts Stripped . | . . . . . . . . . . . Power Chain Reactions 11 | . 3 . . . . . 3 . . 5 Alert | -11 -10 -9 -9 -9 -8 -8 -8 -8 -8 -6 ------- Run | Yrd Mat Mat Min Exi Min Mat Sto Rec Scr Fac Maximum Alert Level 2 | . . 2 . . . 1 1 . . 2 Low Security (%) 70 | 100 100 65 100 . 100 34 68 100 . 64 Level 1 27 | . . 33 . . . 65 31 . . 24 Level 2 2 | . . 1 . . . . . . . 10 Level 3 . | . . . . . . . . . . . Level 4 . | . . . . . . . . . . . Level 5 . | . . . . . . . . . . . High Security . | . . . . . . . . . . . Max Security . | . . . . . . . . . . . Peak Influence 514 | 10 181 401 145 . 167 362 389 186 . 514 Initial 145 | . . . 145 . . . 144 145 . . Average 131 | 1 28 146 58 . 65 203 193 45 . 147 Influence Increases 4353 | 20 433 823 57 . 288 975 734 80 . 943 Destroy 0b10 Robot/C 2420 | . 300 540 40 . 200 420 400 40 . 480 Destroy 0b10 Robot/NC 255 | 20 25 35 . . 10 90 35 . . 40 Destroy Leader 554 | . 70 126 10 . 30 120 86 . . 112 Allied During Kill 47 | . . . 7 . . . 40 . . . Successful Hack 132 | . 7 31 . . . 20 10 38 . 26 Disable Machine 405 | . 15 15 . . 15 120 120 . . 120 Destroy Structure 255 | . 16 16 . . 18 70 43 2 . 90 Lose Combat Pursuer 285 | . . 60 . . 15 135 . . . 75 Influence Decreases 3924 | 20 433 449 431 . 288 633 702 454 . 514 Entered New Map 656 | . . . 229 . . . 198 229 . . Time Decay 2677 | 20 243 429 182 . 278 562 464 225 . 274 Lost Part 371 | . 40 20 . . 10 71 . . . 230 Lost Ally 70 | . . . 20 . . . 40 . . 10 Purge Threat 150 | . 150 . . . . . . . . . Squads Dispatched 17 | . 3 4 . . . 4 2 . . 4 Investigation 4 | . 2 1 . . . 1 . . . . Extermination 3 | . . . . . . . . . . 3 Reinforcement 8 | . 1 3 . . . 3 . . . 1 Assault 2 | . . . . . . . 2 . . . Garrison . | . . . . . . . . . . . Intercept . | . . . . . . . . . . . Searches Triggered . | . . . . . . . . . . . Construction Impeded 1 | . . . . . . . . . . 1 Haulers Reinforced . | . . . . . . . . . . . Active Scanning Responses . | . . . . . . . . . . . Cargo Convoy Interrupts 1 | . . . . . . . . . . 1 Stealth | -11 -10 -9 -9 -9 -8 -8 -8 -8 -8 -6 --------- Run | Yrd Mat Mat Min Exi Min Mat Sto Rec Scr Fac Distress Signals 8 | . . 2 . . 1 1 2 . . 2 Communications Jammed . | . . . . . . . . . . . Distress Signals . | . . . . . . . . . . . Times Spotted 195 | . 22 41 2 . 9 49 24 2 . 46 Peak Tracking Total 12 | . 3 5 2 . 3 5 9 1 . 12 Tactical Retreats 11 | . . 3 . . 1 5 . . . 2 Traps | -11 -10 -9 -9 -9 -8 -8 -8 -8 -8 -6 ------- Run | Yrd Mat Mat Min Exi Min Mat Sto Rec Scr Fac Traps Triggered 2 | . 1 . . . . 1 . . . . Indirectly . | . . . . . . . . . . . Trap Hack Attempts . | . . . . . . . . . . . Triggered . | . . . . . . . . . . . Disarmed . | . . . . . . . . . . . Reprogrammed . | . . . . . . . . . . . Reused . | . . . . . . . . . . . Traps Extracted . | . . . . . . . . . . . Installed . | . . . . . . . . . . . Triggered . | . . . . . . . . . . . Machines | -11 -10 -9 -9 -9 -8 -8 -8 -8 -8 -6 ---------- Run | Yrd Mat Mat Min Exi Min Mat Sto Rec Scr Fac Machines Disabled 28 | . 1 1 . 1 1 8 8 . . 8 Max in Single Turn 6 | . 1 1 . 1 1 6 1 . . 4 Machines Repaired . | . . . . . . . . . . . Machines Dismantled 2 | . . . . 1 . . 1 . . . Machines Sabotaged . | . . . . . . . . . . . Overloaded Fab Kills . | . . . . . . . . . . . Hacking | -11 -10 -9 -9 -9 -8 -8 -8 -8 -8 -6 --------- Run | Yrd Mat Mat Min Exi Min Mat Sto Rec Scr Fac Machines Accessed 57 | . 6 9 . 4 . 7 5 15 2 9 Terminals 26 | . 6 7 . . . 3 3 6 . 1 Fabricators 2 | . . . . . . . . . . 2 Repair Stations 6 | . . . . . . 2 2 . . 2 Recycling Units 12 | . . 2 . . . . . 7 . 3 Scanalyzers 2 | . . . . . . 1 . . . 1 Garrison Access 1 | . . . . . . 1 . . . . Total Hacks 172 | . 16 25 . 4 . 21 17 48 17 24 Successful 123 | . 12 15 . 4 . 10 12 40 17 13 Failed 48 | . 4 10 . . . 10 5 8 . 11 Catastrophic 8 | . 1 2 . . . 1 . 2 . 2 Database Lockouts 1 | . . . . . . 1 . . . . Manual 49 | . 12 8 . . . 12 8 8 . 1 Terminals 77 | . 16 23 . . . 11 11 15 . 1 Fabricators 3 | . . . . . . . . . . 3 Repair Stations 21 | . . . . . . 5 6 . . 10 Recycling Units 19 | . . 2 . . . . . 9 . 8 Scanalyzers 6 | . . . . . . 4 . . . 2 Garrison Access 1 | . . . . . . 1 . . . . Terminal Hacks 70 | . 7 7 . 4 . 2 4 29 17 . Record 45 | . . . . 4 . . . 24 17 . Part Schematic 1 | . . . . . . . . 1 . . Robot Analysis 2 | . . 2 . . . . . . . . Prototype ID Bank 5 | . 1 2 . . . . 1 1 . . Open Door 1 | . . . . . . . 1 . . . Alert Level 6 | . 1 2 . . . 1 1 1 . . Unreport Threat 1 | . 1 . . . . . . . . . Locate Traps 5 | . 2 1 . . . 1 1 . . . Dispatch Records 1 | . 1 . . . . . . . . . Recall Investigation 1 | . 1 . . . . . . . . . Hauler Manifests 1 | . . . . . . . . 1 . . Zone Layout 1 | . . . . . . . . 1 . . Fabricator Hacks 1 | . . . . . . . . . . 1 Build 1 | . . . . . . . . . . 1 Repair Station Hacks 16 | . . . . . . 3 6 . . 7 Scan Component 9 | . . . . . . 2 3 . . 4 Repair 7 | . . . . . . 1 3 . . 3 Recycling Unit Hacks 15 | . . 2 . . . . . 8 . 5 Report Inventory 12 | . . 2 . . . . . 7 . 3 Retrieve Components 3 | . . . . . . . . 1 . 2 Scanalyzer 3 | . . . . . . 3 . . . . Insert Component 1 | . . . . . . 1 . . . . Analyze 1 | . . . . . . 1 . . . . Retrieve Study 1 | . . . . . . 1 . . . . Garrison Access Hacks . | . . . . . . . . . . . Unauthorized Hacks 18 | . 5 6 . . . 2 2 3 . . Terminals 18 | . 5 6 . . . 2 2 3 . . Assimilate 1 | . 1 . . . . . . . . . Botnet 17 | . 4 6 . . . 2 2 3 . . Fabricators . | . . . . . . . . . . . Repair Stations . | . . . . . . . . . . . Recycling Units . | . . . . . . . . . . . Scanalyzers . | . . . . . . . . . . . Garrison Access . | . . . . . . . . . . . Data Cores Recovered . | . . . . . . . . . . . Used . | . . . . . . . . . . . Hacking Detections 38 | . 3 7 . . . 6 5 10 . 7 Full Trace Events 3 | . . 1 . . . 1 . 1 . . Feedback Events 1 | . . 1 . . . . . . . . Corruption 1 | . . 1 . . . . . . . . Feedback Blocked . | . . . . . . . . . . . Robot Schematics Acquired . | . . . . . . . . . . . Robots Built . | . . . . . . . . . . . Authchips . | . . . . . . . . . . . Time . | . . . . . . . . . . . Total Robot Build Rating . | . . . . . . . . . . . Part Schematics Acquired 2 | . . . . . . 1 . 1 . . Parts Built 2 | . . . . . . . . . . 2 Authchips . | . . . . . . . . . . . Time 58 | . . . . . . . . . . 58 Total Part Build Rating 14 | . . . . . . . . . . 14 Part Studies Acquired 1 | . . . . . . 1 . . . . Parts Repaired 7 | . . . . . . 1 3 . . 3 Time 278 | . . . . . . 38 120 . . 120 Parts Recycled . | . . . . . . . . . . . Recycled Matter . | . . . . . . . . . . . Retrieved Matter . | . . . . . . . . . . . Retrieved Components 14 | . . . . . . . . 1 . 13 Parts Scanalyzed 1 | . . . . . . 1 . . . . Part Schematics Acquired 1 | . . . . . . 1 . . . . Parts Damaged . | . . . . . . . . . . . Bothacking | -11 -10 -9 -9 -9 -8 -8 -8 -8 -8 -6 ------------ Run | Yrd Mat Mat Min Exi Min Mat Sto Rec Scr Fac Used RIF Installer . | . . . . . . . . . . . Robots Hacked . | . . . . . . . . . . . Non-combat . | . . . . . . . . . . . Combat . | . . . . . . . . . . . Robot Hacks Applied . | . . . . . . . . . . . Relay Couplers Released 4 | . . . . . . . . . . 4 Programmers 4 | . . . . . . . . . . 4 Fabnet Peak Effective % . | . . . . . . . . . . . Robots Rewired . | . . . . . . . . . . . Allies Hacked . | . . . . . . . . . . . Hacks Repelled . | . . . . . . . . . . . Allies | -11 -10 -9 -9 -9 -8 -8 -8 -8 -8 -6 -------- Run | Yrd Mat Mat Min Exi Min Mat Sto Rec Scr Fac Total Allies 6 | . 1 . 3 . . . 2 . . . Largest Group 3 | . 1 1 3 1 1 . 2 . . . Highest-Rated Group 62 | . 10 10 40 16 16 . 62 . . . Highest-Rated Ally 31 | . 10 10 16 16 16 . 31 . . . Total Orders 4 | . . . . . . . . . . 4 EXPLORE 2 | . . . . . . . . . . 2 RETURN 2 | . . . . . . . . . . 2 Ally Attacks 44 | . . . 16 . 5 . 23 . . . Total Damage 616 | . . . 169 . 44 . 403 . . . Kills 7 | . . . 2 . . . 5 . . . Allies Corrupted . | . . . . . . . . . . . Allies Melted 1 | . . . . . . . 1 . . . Intel | -11 -10 -9 -9 -9 -8 -8 -8 -8 -8 -6 ------- Run | Yrd Mat Mat Min Exi Min Mat Sto Rec Scr Fac Active Infowar (turns) 11689 | 66 525 1449 471 483 729 1878 961 933 2555 1639 Optics 4441 | . 69 308 471 483 729 891 . . . 1490 Sensors 8422 | . . 1312 147 . . 1036 961 933 2555 1478 Traps 52 | . . . . . . . . . . 52 Seismic 1373 | 66 456 279 . . . 572 . . . . Jamming 129 | . . . . . . 3 . . . 126 Robot Analysis Total 2 | . . 2 . . . . . . . . Derelict Logs Recovered 2 | . . . 2 . . . . . . . Drone Launches 3 | . . . . . . . . . . 3 Drone Recoveries 2 | . . . . . . . . . . 2 Exploration | -11 -10 -9 -9 -9 -8 -8 -8 -8 -8 -6 ------------- Run | Yrd Mat Mat Min Exi Min Mat Sto Rec Scr Fac Turns Passed 12660 | 143 884 1449 471 483 729 2068 1176 939 2562 1756 Spaces Moved 7580 | 108 644 873 407 430 593 980 501 635 1704 705 Core 3 | 3 . . . . . . . . . . Treads 4098 | . . . . . . 622 501 635 1635 705 Legs . | . . . . . . . . . . . Wheels 3479 | 105 644 873 407 430 593 358 . . 69 . Hover . | . . . . . . . . . . . Flight . | . . . . . . . . . . . Fastest Speed 50 | 50 80 100 105 105 105 93 145 145 120 145 Average Speed 127 | 79 90 105 105 105 105 134 145 145 148 150 Slowest Speed 240 | 80 110 110 105 105 105 240 145 145 225 225 Overloaded Moves . | . . . . . . . . . . . Propulsion Burnouts . | . . . . . . . . . . . Robots Hopped . | . . . . . . . . . . . Potential Cave-ins . | . . . . . . . . . . . Cave-ins Triggered . | . . . . . . . . . . . Exploration Rate (%) 65 | 5 91 66 76 79 88 65 73 98 59 24 Regions Visited 10 Branch Regions 6 Pre-discovered Areas 1 | . . . . . . . . . 1 . Known Exits Taken 5 | . 1 . . . . 1 1 1 1 . Unknown Exits Taken 5 | 1 . 1 1 1 1 . . . . . Scrap Searched 7 | . . . 1 . 1 . . . 5 . Spaces Dug 36 | . 1 6 . . . 11 2 1 . 15 Terrain Destroyed 261 | . 13 14 . . 18 72 41 2 . 101 Melee 25 | . . . . . . 10 2 1 . 12 Projectile 60 | . 1 14 . . 3 23 9 1 . 9 AOE 176 | . 12 . . . 15 39 30 . . 80 Terrain Rammed . | . . . . . . . . . . . Walls Destroyed . | . . . . . . . . . . . Machines Disabled . | . . . . . . . . . . . Actions | -11 -10 -9 -9 -9 -8 -8 -8 -8 -8 -6 --------- Run | Yrd Mat Mat Min Exi Min Mat Sto Rec Scr Fac Total 9765 | 143 805 1261 448 446 664 1519 856 645 1735 1243 Wait 1373 | . 47 265 29 7 43 339 267 . . 376 Move 7570 | 107 643 872 406 429 592 979 500 634 1703 705 Hop . | . . . . . . . . . . . Pick Up 111 | 13 12 20 3 1 4 27 4 1 9 17 Fast Attach 16 | . 1 . . . . 5 7 . 2 1 Attach 59 | 7 6 6 . . 2 11 . . 4 23 Detach 3 | . . . . . . . 1 . . 2 Swap 122 | . 17 12 4 2 1 32 19 5 6 24 Drop 69 | 2 5 10 4 . 2 22 9 1 11 3 Fire 363 | 14 74 76 2 3 20 80 30 2 . 62 Melee 59 | . . . . . . 22 10 1 . 26 Ram . | . . . . . . . . . . . Kick . | . . . . . . . . . . . Crush 7 | . . . . . . 2 . 1 . 4 Escape Stasis . | . . . . . . . . . . . Rewire . | . . . . . . . . . . . Trap . | . . . . . . . . . . . Miscellaneous 13 | . . . . 4 . . 9 . . . Route ------- -11/Scrapyard -10/Materials (discovered 6 exits: *Mat x3 / *Min x2 / [*Sub]) -9/Materials (discovered 4 exits: *Mat x2 / [*Min x2]) -9/Mines (discovered 2 exits: *Exi / [*Zio]) -9/Exiles -8/Mines -8/Materials (discovered 4 exits: *Fac x2 / *Sto x2) -8/Storage (discovered 2 exits: *Fac / *Rec) -8/Recycling (discovered 2 exits: *Fac / *Scr) -8/Scraptown -6/Factory (discovered 1 exit: *Low) History --------- Turn | Location | Event 17 | -11/Scrapyard | Discovered new exit (range 15) 144 | -11/Scrapyard | Entered Materials 335 | -10/Materials | Build established: Mutant 490 | -10/Materials | Destroyed 8 combat bots 516 | -10/Materials | Discovered new exit (range 3) 519 | -10/Materials | Identified exit to Materials 576 | -10/Materials | Discovered new exit (range 7) 581 | -10/Materials | Identified exit to Mines 838 | -10/Materials | Discovered exit to Materials (range 7) 924 | -10/Materials | Discovered exit to Mines (range 12) 973 | -10/Materials | Discovered new exit (range 8) 1011 | -10/Materials | Discovered exit to Materials (range 16) 1028 | -10/Materials | Entered another Materials area 1028 | -9/Materials | Accompanied by 1 ally 1028 | -9/Materials | Evolved 2 slots: Utility x2 1138 | -9/Materials | Discovered new exit (range 6) 1381 | -9/Materials | Discovered new exit (range 11) 1476 | -9/Materials | Discovered new exit (range 15) 2033 | -9/Materials | Discovered new exit (range 7) 2477 | -9/Materials | Entered Mines 2547 | -9/Mines | Assisted by bots powering up and referring to "LRC-V3" 2625 | -9/Mines | Learned Materials stockpile data 2783 | -9/Mines | A Derelict revealed a hidden shortcut to a safe place 2904 | -9/Mines | Found a damaged Exp. Sensor Array with a note attached 2907 | -9/Mines | Found Prototype Device 2908 | -9/Mines | Identified Exp. Sensor Array 2943 | -9/Mines | Deemed a non-threat by the Exiles lab entrance 2944 | -9/Mines | Discovered new exit (range 5) 2948 | -9/Mines | Entered Exiles 2948 | -9/Exiles | Found Exiles lab abandoned 2948 | -9/Exiles | Accompanied by 1 ally 3080 | -9/Exiles | Discovered new exit (range 15) 3431 | -9/Exiles | Entered Mines 3431 | -8/Mines | Accompanied by 1 ally 3599 | -8/Mines | Discovered new exit (range 11) 4160 | -8/Mines | Entered Materials 4160 | -8/Materials | Evolved 2 slots: Propulsion x1, Weapon x1 4161 | -8/Materials | Identified exit to Storage 4330 | -8/Materials | Lost 5 parts (1p1n2u1w) 4338 | -8/Materials | Discovered exit to Storage (range 13) 4812 | -8/Materials | Build established: Scavenger-Mutant 5268 | -8/Materials | Discovered new exit (range 4) 5273 | -8/Materials | Identified exit to Factory 5296 | -8/Materials | Central database locked down 5422 | -8/Materials | Build established: Mutant 5528 | -8/Materials | Repaired System Shield 5723 | -8/Materials | Build established: Skirmisher 5888 | -8/Materials | Discovered exit to Factory (range 16) 6228 | -8/Materials | Entered Storage 6323 | -8/Storage | Repaired Gauss Rifle 6801 | -8/Storage | Repaired Adv. Treads 6841 | -8/Storage | Repaired Adv. Treads 7004 | -8/Storage | Met a pair of Derelict thieves 7104 | -8/Storage | Discovered exit to Factory (range 16) 7398 | -8/Storage | Discovered new exit (range 3) 7403 | -8/Storage | Identified exit to Recycling 7404 | -8/Storage | Entered Recycling 7405 | -8/Recycling | Met a Zionite searching for Scraptown 8207 | -8/Recycling | Discovered new exit (range 16) 8234 | -8/Recycling | Identified exit to Factory 8281 | -8/Recycling | Scanned before Scraplab entrance 8302 | -8/Recycling | Entered Scraplab 8339 | -8/Recycling | Discovered new exit (range 3) 8340 | -8/Recycling | Identified exit to Scraptown 8343 | -8/Recycling | Entered Scraptown 8648 | -8/Scraptown | Visited Comm Corps 8713 | -8/Scraptown | Heard Great Nut preacher, LISTEN AND RECITE! 8736 | -8/Scraptown | Visited The Evicted 9252 | -8/Scraptown | Discovered exit to Factory (range 7) 9422 | -8/Scraptown | Visited Fellowship of the Rings 9464 | -8/Scraptown | Visited CR-KLE's Repair Center 9478 | -8/Scraptown | CR-KLE repaired 7 parts 9526 | -8/Scraptown | Visited UFD Registry 9536 | -8/Scraptown | Visited Spacefarers 9750 | -8/Scraptown | Visited Shadow of the Wyrm 9811 | -8/Scraptown | Visited Cave Peace 10905 | -8/Scraptown | Entered Factory 10905 | -6/Factory | Evolved 4 slots: Power x1, Propulsion x1, Utility x2 11025 | -6/Factory | Discovered new exit (range 15) 11074 | -6/Factory | Identified exit to Lower Caves 11197 | -6/Factory | Repaired Med. Armor Plating 11249 | -6/Factory | Repaired Adv. Signal Interpreter 11459 | -6/Factory | Fabricated Adv. Medium Treads (x2) 11820 | -6/Factory | Repaired Hvy. Flail 12159 | -6/Factory | Lost 4 parts (1p1n1u1w) 12499 | -6/Factory | Lost 3 parts (1u2w) 12587 | -6/Factory | Cargo convoy interrupted 12639 | -6/Factory | Core integrity fell below 50% 12655 | -6/Factory | Core integrity fell below 20% 12661 | -6/Factory | Destroyed by A-27 Freighter with PD Laser Last Messages --------------- Slug penetrates Wall. Adv. Medium Treads destroyed. P-60 Hacker resets X-72 Disruptor, system corruption cleaned. Penetrated by Slug. Slug penetrates H-66 Slayer. Hpw. Shock Rifle destroyed. Penetrated by Slug. Gauss Rifle destroyed. Penetrated by Slug. Core Analyzer destroyed. Destroyed Targeting Computer. H-66 Slayer system corrupted by crushing effect. H-66 Slayer system terminally corrupted. Flexi-carbon Leg fried. Targeting Computer fried. Penetrated by Slug. K-01 Serf destroyed. Penetrated by Slug. W-25 Informer destroyed. Map ----- +----------------------------------------------------+ | ?????????????????????????????????????????????????? | | ?????????????????????????????????????????????????? | | ?????????????????????????????????????????????????? | | ?????????????????????????????????????????????????? | | ????????????????????????????????????????????????## | | ????????????????????????????????????????????????# | | ????????????????????????????????????????????????# | | ????????????????????????????????????????????????# | | ????????????????????????????????????????????????# | | ????????????????????????????????????????????????# | | ????????????????????????????????????????????????# | | ????????????????????????????????????????????????# | | ????????????????????????????????????????????????# | | ???????????????????????????????????####+########## | | ???????????????????????????????????# | | ???????????????????????????????????# | | ???????????????????????????????????# | | ????????????????????????????######## """"""" | | ????????????????????????????# # """"""" | | ????????????????????????????# # """"""" "" | | ????????????????????????????# """ !#*! """"""" [" | | ????????????????????????????# """ #*! *! | | ????????????????????????????# """ # =[" | | ????????????????????????????# # = " | | ????????????????????###h####;####+##!|= ######"" | | ????????????????????#!xh=@A !!%%!! #???# " | | ??????????????????###[i%#;#######+####+#+#???## " | | ??????????????????# %h# ######### ? ???##" | | ??????????????????## !!%# ## ??##" | | ??????????????????# ]# """" ## #??## | | ??????? ### # """" ## #???? | | ??????? /% % " """ ## #???? | | ???? ### # """" ## #???? | | ???# ??????#% # ## #???? | | ???#####??????????###########+### #???? | | ????????????????????????????# #?# #???? | | ????????????????????????????# #?#% #???? | | ????????????????????????????# #?# #???? | | ????????????????????????????# #?# ???? | | ????????????????????????????# #??#############???? | | ????????????????????????????# #??????????????????? | | ????????????????????????????# #??????????????????? | | ????????????????????????????# ??????????????????? | | ???????????????????????????? ??????????????????? | | ???????????????????????????? ??????????????????? | | ???????????????????????????? !??????????????????? | | ???????????????????????????? !??????????????????? | | ???????????????????????????? !??????????????????? | | ???????????????????????????? ??????????????????? | | ???????????????????????????? ??????????????????? | +----------------------------------------------------+ Best States ------------- Heat Dissipation 56 Energy Generation 31 Energy Capacity 465 Matter Stores 300 Matter Capacity 300 Sight Range 22 Robot Scan Range 20 Terrain Scan Density 10 Jamming Range 12 Armor Coverage 225 Weapon Shielding 66 Evasion (%) 44 Targeting Accuracy 8 Core Analysis 6 Recoil Reduction 4 Item Schematics ----------------- System Shield | -8/Materials | Scanalyzed Adv. Signal Interpreter | -8/Recycling | Hacked Robot Schematics ------------------ None Fabricated ------------ Adv. Medium Treads | x2 | -6/Factory | Preloaded Repaired ---------- System Shield | 20% | -8/Materials Gauss Rifle | 23% | -8/Storage Adv. Treads | 18% | -8/Storage Adv. Treads | 34% | -8/Storage Med. Armor Plating | 23% | -6/Factory Adv. Signal Interpreter | 37% | -6/Factory Hvy. Flail | 36% | -6/Factory Studied --------- Assault Cannon | -8/Materials | Hacked Alien Tech Used ----------------- None Achievements -------------- Botjacking Civilization 2243 Into The Breach Just What I Needed Oh No You Don't! You May Approach The Wall \\IAMDERELICT Challenges ------------ None Game ------ Seed RefinerySignalShielding Manual? 0 Play Time 03:09:42 Cumulative 16.7 hours Start 2025.11.21 @ 07:27:07 End 2025.11.21 @ 15:23:02 Sessions 3 Manual Loads 0 Difficulty Rogue Special Mode None Game No. 8 Rogue 8 Adventurer 0 Explorer 0 Win Type - Total 0 Types 0/0/0/0/0/0/0/0/0/0 Lore% 15 Gallery% 14 Achievement% 17 Wizard Run 0 Options --------- Layout 1 ASCII 0 Keyboard 0 Movement Mouse Keybinds 0 Fullscreen 1 Font 32/SmallcapsGlow Map View 50x35 Zoom Use 0% Tactical HUD 0 Map Filters NONE Filters NONE Steam 1 RUN: 1841950a-d68f-4cc5-a8bc-43564e4e61f7